[Event "Live Chess"]
[Site "Chess.com"]
[Date "2024.06.01"]
[Round "-"]
[White "CheckThis4"]
[Black "willc-h99"]
[Result "1-0"]
[WhiteElo "2690"]
[BlackElo "2653"]
[TimeControl "300"]
[EndTime "9:57:47 PDT"]
[Termination "CheckThis4 won on time"]

1. e4 {[%clk 0:04:58]} 1... c6 {[%clk 0:04:58.7]} 2. c4 {[%clk 0:04:54]} 2... d5
{[%clk 0:04:52.7]} 3. cxd5 {[%clk 0:04:53.1]} 3... cxd5 {[%clk 0:04:51.9]} 4.
exd5 {[%clk 0:04:51.9]} 4... Nf6 {[%clk 0:04:51.5]} 5. Nc3 {[%clk 0:04:50.4]}
5... Nxd5 {[%clk 0:04:49.3]} 6. Nf3 {[%clk 0:04:49.3]} 6... e6 {[%clk
0:04:33.9]} 7. d4 {[%clk 0:04:46.6]} 7... Nc6 {[%clk 0:04:30.3]} 8. Bd3 {[%clk
0:04:42.7]} 8... Be7 {[%clk 0:04:27]} 9. O-O {[%clk 0:04:41.4]} 9... Bf6 {[%clk
0:04:24.2]} 10. Re1 {[%clk 0:04:31.4]} 10... O-O {[%clk 0:04:19.3]} 11. Be4
{[%clk 0:04:29.7]} 11... b6 {[%clk 0:03:43]} 12. Qd3 {[%clk 0:04:24.9]} 12... g6
{[%clk 0:03:36.3]} 13. Bh6 {[%clk 0:04:22.6]} 13... Bg7 {[%clk 0:03:25.4]} 14.
Bxg7 {[%clk 0:04:20.9]} 14... Kxg7 {[%clk 0:03:25.3]} 15. Bxd5 {[%clk
0:04:15.5]} 15... exd5 {[%clk 0:03:23.9]} 16. Ne5 {[%clk 0:04:15]} 16... Nb4
{[%clk 0:03:05.7]} 17. Qd2 {[%clk 0:04:03.5]} 17... f6 {[%clk 0:02:47.5]} 18.
Nd3 {[%clk 0:03:55.8]} 18... Nxd3 {[%clk 0:02:22.4]} 19. Qxd3 {[%clk 0:03:55.7]}
19... Qd6 {[%clk 0:02:21.3]} 20. Nb5 {[%clk 0:03:32.2]} 20... Ba6 {[%clk
0:01:57.4]} 21. Nxd6 {[%clk 0:03:24]} 21... Bxd3 {[%clk 0:01:55.4]} 22. Re7+
{[%clk 0:03:22.5]} 22... Kg8 {[%clk 0:01:49.7]} 23. Rc1 {[%clk 0:03:17.5]} 23...
Rad8 {[%clk 0:01:43.9]} 24. Rcc7 {[%clk 0:03:13.8]} 24... g5 {[%clk 0:01:36.2]}
25. Nf7 {[%clk 0:02:10.1]} 25... Rde8 {[%clk 0:01:32.4]} 26. Nh6+ {[%clk
0:02:09]} 26... Kh8 {[%clk 0:01:31.2]} 27. g4 {[%clk 0:02:06.2]} 27... a5 {[%clk
0:01:07.5]} 28. f3 {[%clk 0:01:40.6]} 28... Bg6 {[%clk 0:00:58.9]} 29. Kf2
{[%clk 0:01:35.1]} 29... Rxe7 {[%clk 0:00:57.9]} 30. Rxe7 {[%clk 0:01:33.4]}
30... Rc8 {[%clk 0:00:57.5]} 31. Nf5 {[%clk 0:01:22.9]} 31... Rc2+ {[%clk
0:00:52.7]} 32. Kg3 {[%clk 0:01:20.9]} 32... Rxb2 {[%clk 0:00:50.9]} 33. Rd7
{[%clk 0:01:12.5]} 33... Bxf5 {[%clk 0:00:49.4]} 34. gxf5 {[%clk 0:01:12.4]}
34... Rxa2 {[%clk 0:00:48.6]} 35. Rxd5 {[%clk 0:01:11.7]} 35... Rd2 {[%clk
0:00:47.8]} 36. Rd6 {[%clk 0:01:07.8]} 36... b5 {[%clk 0:00:41.9]} 37. Rxf6
{[%clk 0:01:05.6]} 37... Rxd4 {[%clk 0:00:38.4]} 38. Rb6 {[%clk 0:01:02.8]}
38... Rd5 {[%clk 0:00:36.6]} 39. f6 {[%clk 0:01:01.4]} 39... Kg8 {[%clk
0:00:35.2]} 40. Rb7 {[%clk 0:00:58.2]} 40... a4 {[%clk 0:00:34]} 41. f4 {[%clk
0:00:56.5]} 41... a3 {[%clk 0:00:27.8]} 42. fxg5 {[%clk 0:00:51.9]} 42... a2
{[%clk 0:00:26]} 43. Ra7 {[%clk 0:00:46.4]} 43... Rxg5+ {[%clk 0:00:23.2]} 44.
Kf4 {[%clk 0:00:45.4]} 44... Rg2 {[%clk 0:00:22.3]} 45. Kf5 {[%clk 0:00:33.8]}
45... b4 {[%clk 0:00:20.2]} 46. Ke6 {[%clk 0:00:20.8]} 46... Re2+ {[%clk
0:00:18.8]} 47. Kf5 {[%clk 0:00:14.6]} 47... b3 {[%clk 0:00:17.9]} 48. Ra8+
{[%clk 0:00:13.5]} 48... Kf7 {[%clk 0:00:17.3]} 49. Ra7+ {[%clk 0:00:12.9]}
49... Kf8 {[%clk 0:00:16.6]} 50. f7 {[%clk 0:00:10.2]} 50... Re7 {[%clk
0:00:10.3]} 51. Ra3 {[%clk 0:00:04.8]} 51... Kxf7 {[%clk 0:00:09]} 52. Kg5
{[%clk 0:00:03.5]} 52... Rb7 {[%clk 0:00:07.6]} 53. Kh6 {[%clk 0:00:03.4]} 53...
b2 {[%clk 0:00:06.6]} 54. Rf3+ {[%clk 0:00:02.3]} 54... Kg8 {[%clk 0:00:05.4]}
55. Rg3+ {[%clk 0:00:02.2]} 55... Kh8 {[%clk 0:00:04.7]} 56. Rf3 {[%clk
0:00:02.1]} 56... Rb8 {[%clk 0:00:03.6]} 57. Rf8+ {[%clk 0:00:02]} 57... Rxf8
{[%clk 0:00:01.4]} 58. h4 {[%clk 0:00:01.9]} 58... Rf5 {[%clk 0:00:00.3]} 59. h5
{[%clk 0:00:01.8]} 1-0

[Event "Live Chess"]
[Site "Chess.com"]
[Date "2024.06.01"]
[Round "-"]
[White "gmnorfolk"]
[Black "Bob2pen"]
[Result "1/2-1/2"]
[WhiteElo "2087"]
[BlackElo "1822"]
[TimeControl "300"]
[EndTime "9:57:55 PDT"]
[Termination "Game drawn by repetition"]

1. c4 {[%clk 0:04:57.6]} 1... e5 {[%clk 0:04:57.7]} 2. Nc3 {[%clk 0:04:55.5]}
2... Nf6 {[%clk 0:04:56.7]} 3. Nf3 {[%clk 0:04:54]} 3... Nc6 {[%clk 0:04:55.5]}
4. g3 {[%clk 0:04:52.2]} 4... d5 {[%clk 0:04:54.5]} 5. cxd5 {[%clk 0:04:49]}
5... Nxd5 {[%clk 0:04:53.6]} 6. Bg2 {[%clk 0:04:48.1]} 6... Nb6 {[%clk
0:04:52.4]} 7. O-O {[%clk 0:04:47.6]} 7... Be7 {[%clk 0:04:50.9]} 8. b3 {[%clk
0:04:47.2]} 8... O-O {[%clk 0:04:49.5]} 9. Bb2 {[%clk 0:04:46.7]} 9... Bf5
{[%clk 0:04:39.9]} 10. Rc1 {[%clk 0:04:42.4]} 10... Rc8 {[%clk 0:04:36.3]} 11.
Nb5 {[%clk 0:04:29.8]} 11... a6 {[%clk 0:04:28.9]} 12. Rxc6 {[%clk 0:04:26.3]}
12... axb5 {[%clk 0:04:14]} 13. Rxb6 {[%clk 0:04:15.6]} 13... cxb6 {[%clk
0:04:10.3]} 14. Nxe5 {[%clk 0:04:14.5]} 14... Bf6 {[%clk 0:04:04.3]} 15. f4
{[%clk 0:04:07.1]} 15... Rc2 {[%clk 0:04:01.8]} 16. Ba3 {[%clk 0:04:00]} 16...
Rxd2 {[%clk 0:03:58.6]} 17. Qe1 {[%clk 0:03:54.2]} 17... Re8 {[%clk 0:03:49.4]}
18. e4 {[%clk 0:03:51.5]} 18... Bd7 {[%clk 0:03:37.1]} 19. Nxd7 {[%clk
0:03:45.6]} 19... Qxd7 {[%clk 0:03:31.4]} 20. e5 {[%clk 0:03:44.7]} 20... Be7
{[%clk 0:03:26.1]} 21. Bc1 {[%clk 0:03:36.5]} 21... Bc5+ {[%clk 0:03:24.1]} 22.
Kh1 {[%clk 0:03:34.7]} 22... Rxa2 {[%clk 0:03:16]} 23. f5 {[%clk 0:03:33.8]}
23... Qd4 {[%clk 0:03:09.5]} 24. Bf4 {[%clk 0:03:17.7]} 24... Rf2 {[%clk
0:03:00.9]} 25. Rxf2 {[%clk 0:03:10.8]} 25... Qxf2 {[%clk 0:02:59.8]} 26. Qxf2
{[%clk 0:03:09.9]} 26... Bxf2 {[%clk 0:02:58.2]} 27. Bxb7 {[%clk 0:03:09.6]}
27... Rd8 {[%clk 0:02:52]} 28. Bc6 {[%clk 0:03:04.5]} 28... b4 {[%clk
0:02:42.7]} 29. e6 {[%clk 0:03:03.6]} 29... fxe6 {[%clk 0:02:41.5]} 30. fxe6
{[%clk 0:03:02.5]} 30... Bc5 {[%clk 0:02:40.2]} 31. Bg5 {[%clk 0:02:58.6]} 31...
Rd1+ {[%clk 0:02:24.4]} 32. Kg2 {[%clk 0:02:56.8]} 32... Kf8 {[%clk 0:02:23.2]}
33. Bb5 {[%clk 0:02:39.1]} 33... Be7 {[%clk 0:02:17.7]} 34. Bf4 {[%clk
0:02:33.9]} 34... Bf6 {[%clk 0:02:14.2]} 35. h4 {[%clk 0:02:28.5]} 35... Ke7
{[%clk 0:02:11.6]} 36. Bc4 {[%clk 0:02:25.6]} 36... h6 {[%clk 0:01:51.5]} 37.
Be3 {[%clk 0:02:15.2]} 37... Bd4 {[%clk 0:01:49.7]} 38. Be2 {[%clk 0:02:07.6]}
38... Re1 {[%clk 0:01:44.1]} 39. Kf2 {[%clk 0:01:51.8]} 39... Rxe2+ {[%clk
0:01:39]} 40. Kxe2 {[%clk 0:01:49.3]} 40... Bxe3 {[%clk 0:01:38.2]} 41. Kxe3
{[%clk 0:01:48.7]} 41... Kxe6 {[%clk 0:01:38.1]} 42. Ke4 {[%clk 0:01:46.1]}
42... g5 {[%clk 0:01:37]} 43. hxg5 {[%clk 0:01:38.3]} 43... hxg5 {[%clk
0:01:36.2]} 44. g4 {[%clk 0:01:22.7]} 44... b5 {[%clk 0:01:28.7]} 45. Kd4 {[%clk
0:01:17.1]} 45... Kd6 {[%clk 0:01:27.8]} 46. Ke4 {[%clk 0:01:13.4]} 46... Ke6
{[%clk 0:01:26.9]} 47. Kd4 {[%clk 0:01:13]} 47... Kd6 {[%clk 0:01:26.1]} 48. Ke4
{[%clk 0:01:11.7]} 48... Ke6 {[%clk 0:01:25.2]} 1/2-1/2

[Event "Live Chess"]
[Site "Chess.com"]
[Date "2024.06.01"]
[Round "-"]
[White "PatientChessPapa"]
[Black "Frankie_Badacsonyi"]
[Result "0-1"]
[WhiteElo "805"]
[BlackElo "2448"]
[TimeControl "300"]
[EndTime "9:58:11 PDT"]
[Termination "Frankie_Badacsonyi won by resignation"]

1. e4 {[%clk 0:04:56.4]} 1... g6 {[%clk 0:04:59.9]} 2. d4 {[%clk 0:04:52.1]}
2... Bg7 {[%clk 0:04:59.8]} 3. Nc3 {[%clk 0:04:48.4]} 3... c6 {[%clk 0:04:58.9]}
4. f4 {[%clk 0:04:44.5]} 4... d5 {[%clk 0:04:58.3]} 5. exd5 {[%clk 0:04:30.3]}
5... cxd5 {[%clk 0:04:58.2]} 6. Nf3 {[%clk 0:04:26.4]} 6... Nc6 {[%clk
0:04:57.1]} 7. Be3 {[%clk 0:04:14.2]} 7... Bg4 {[%clk 0:04:55.5]} 8. h3 {[%clk
0:04:08.8]} 8... Bxf3 {[%clk 0:04:53.4]} 9. Qxf3 {[%clk 0:04:05.5]} 9... e6
{[%clk 0:04:53.3]} 10. Bb5 {[%clk 0:04:00.8]} 10... Ne7 {[%clk 0:04:44.1]} 11.
O-O {[%clk 0:03:32.6]} 11... O-O {[%clk 0:04:40.2]} 12. Rad1 {[%clk 0:03:09.9]}
12... Qb6 {[%clk 0:04:38.1]} 13. Na4 {[%clk 0:03:01]} 13... Qxb5 {[%clk
0:04:35.2]} 14. Nc5 {[%clk 0:02:53.5]} 14... Nf5 {[%clk 0:04:24.2]} 15. a4
{[%clk 0:02:48.3]} 15... Qa5 {[%clk 0:04:06.8]} 16. b4 {[%clk 0:02:43.1]} 16...
Qc7 {[%clk 0:04:01.1]} 17. c3 {[%clk 0:02:21.3]} 17... b6 {[%clk 0:03:58.4]} 18.
Nd3 {[%clk 0:02:14.5]} 18... Nxe3 {[%clk 0:03:57.4]} 19. Qxe3 {[%clk 0:02:11.5]}
19... Ne7 {[%clk 0:03:56.6]} 20. Ne5 {[%clk 0:02:09.4]} 20... Nf5 {[%clk
0:03:55.3]} 21. Qf2 {[%clk 0:02:03.1]} 21... Qxc3 {[%clk 0:03:46.6]} 22. Rc1
{[%clk 0:01:58.7]} 22... Qxd4 {[%clk 0:03:43.9]} 23. Rc7 {[%clk 0:01:43.4]}
23... Bxe5 {[%clk 0:03:40.4]} 24. fxe5 {[%clk 0:01:31.8]} 24... Qxf2+ {[%clk
0:03:35.2]} 25. Rxf2 {[%clk 0:01:30.4]} 25... d4 {[%clk 0:03:29.7]} 26. Rd7
{[%clk 0:01:10.2]} 26... Rfd8 {[%clk 0:03:27.8]} 27. Rxd8+ {[%clk 0:01:06.1]}
27... Rxd8 {[%clk 0:03:27.7]} 28. g4 {[%clk 0:01:04.7]} 28... d3 {[%clk
0:03:21.2]} 29. Rd2 {[%clk 0:00:58.6]} 29... Nd4 {[%clk 0:03:14.4]} 30. Kf2
{[%clk 0:00:53.5]} 30... Nb3 {[%clk 0:03:12.7]} 31. Rd1 {[%clk 0:00:50]} 31...
d2 {[%clk 0:03:11.9]} 32. Ke3 {[%clk 0:00:41.9]} 32... g5 {[%clk 0:03:04.9]} 33.
b5 {[%clk 0:00:31.9]} 33... Kg7 {[%clk 0:03:03.8]} 34. Rb1 {[%clk 0:00:14.7]}
34... d1=Q {[%clk 0:03:01.8]} 35. Rxd1 {[%clk 0:00:10.7]} 35... Rxd1 {[%clk
0:03:01.7]} 0-1

[Event "Live Chess"]
[Site "Chess.com"]
[Date "2024.06.01"]
[Round "-"]
[White "Isambard_Thomas"]
[Black "DukeBG"]
[Result "1-0"]
[WhiteElo "2137"]
[BlackElo "477"]
[TimeControl "300"]
[EndTime "9:58:14 PDT"]
[Termination "Isambard_Thomas won on time"]

1. d4 {[%clk 0:04:59.2]} 1... d5 {[%clk 0:04:55.6]} 2. Nf3 {[%clk 0:04:59.1]}
2... Nf6 {[%clk 0:04:53.7]} 3. Bg5 {[%clk 0:04:59]} 3... Nc6 {[%clk 0:04:48.6]}
4. e3 {[%clk 0:04:58.4]} 4... Bd7 {[%clk 0:04:32.7]} 5. c3 {[%clk 0:04:56.3]}
5... g6 {[%clk 0:04:11.6]} 6. Bd3 {[%clk 0:04:52]} 6... Bg7 {[%clk 0:04:07.2]}
7. Nbd2 {[%clk 0:04:50.7]} 7... O-O {[%clk 0:04:05.5]} 8. Qe2 {[%clk 0:04:46.3]}
8... Bf5 {[%clk 0:03:46.4]} 9. Bxf5 {[%clk 0:04:40.7]} 9... gxf5 {[%clk
0:03:45.1]} 10. O-O-O {[%clk 0:04:27.4]} 10... Re8 {[%clk 0:03:32.1]} 11. Bf4
{[%clk 0:04:23.9]} 11... Nh5 {[%clk 0:03:20]} 12. Be5 {[%clk 0:04:18.4]} 12...
Nxe5 {[%clk 0:03:09.8]} 13. Nxe5 {[%clk 0:04:17.2]} 13... Nf6 {[%clk 0:02:49.8]}
14. g4 {[%clk 0:04:05.2]} 14... Rc8 {[%clk 0:02:25.3]} 15. gxf5 {[%clk
0:03:56.1]} 15... c5 {[%clk 0:02:09.7]} 16. dxc5 {[%clk 0:03:49.6]} 16... Rxc5
{[%clk 0:02:05.5]} 17. Rdg1 {[%clk 0:03:47.2]} 17... Ne4 {[%clk 0:01:35.7]} 18.
Qg4 {[%clk 0:03:32.1]} 1-0

[Event "Live Chess"]
[Site "Chess.com"]
[Date "2024.06.01"]
[Round "-"]
[White "MellowAesthetic"]
[Black "McFim"]
[Result "1-0"]
[WhiteElo "2068"]
[BlackElo "1580"]
[TimeControl "300"]
[EndTime "9:58:20 PDT"]
[Termination "MellowAesthetic won by resignation"]

1. e4 {[%clk 0:04:58.7]} 1... c6 {[%clk 0:04:58.2]} 2. d4 {[%clk 0:04:57.1]}
2... d5 {[%clk 0:04:57.8]} 3. exd5 {[%clk 0:04:57]} 3... cxd5 {[%clk 0:04:54.9]}
4. c4 {[%clk 0:04:56.2]} 4... Nf6 {[%clk 0:04:53.1]} 5. Nc3 {[%clk 0:04:55.4]}
5... e6 {[%clk 0:04:52]} 6. Nf3 {[%clk 0:04:54.7]} 6... Be7 {[%clk 0:04:50.6]}
7. c5 {[%clk 0:04:53.6]} 7... O-O {[%clk 0:04:48.7]} 8. Rb1 {[%clk 0:04:37.8]}
8... a5 {[%clk 0:04:47.3]} 9. a3 {[%clk 0:04:35.4]} 9... Nc6 {[%clk 0:04:45.7]}
10. Bb5 {[%clk 0:04:33.7]} 10... Nd7 {[%clk 0:04:39.4]} 11. O-O {[%clk
0:04:19.9]} 11... Bf6 {[%clk 0:04:37.8]} 12. Re1 {[%clk 0:04:16.6]} 12... Qc7
{[%clk 0:04:26.6]} 13. b4 {[%clk 0:03:50.7]} 13... axb4 {[%clk 0:04:23.8]} 14.
axb4 {[%clk 0:03:50.6]} 14... Ndb8 {[%clk 0:03:36.9]} 15. Bd3 {[%clk 0:03:27.8]}
15... g6 {[%clk 0:03:34.9]} 16. Bh6 {[%clk 0:03:03.6]} 16... Bg7 {[%clk
0:03:31.9]} 17. Bxg7 {[%clk 0:02:55.8]} 17... Kxg7 {[%clk 0:03:30.5]} 18. Nb5
{[%clk 0:02:24.5]} 18... Qd8 {[%clk 0:03:26.8]} 19. Nd6 {[%clk 0:02:22.6]} 19...
Nd7 {[%clk 0:03:02.3]} 20. b5 {[%clk 0:02:13.2]} 20... Ne7 {[%clk 0:02:59.3]}
21. Qd2 {[%clk 0:01:57.5]} 21... h6 {[%clk 0:02:52.6]} 22. Ra1 {[%clk
0:01:52.1]} 22... Rxa1 {[%clk 0:02:49.6]} 23. Rxa1 {[%clk 0:01:52]} 23... Nf6
{[%clk 0:02:45.8]} 24. Ra8 {[%clk 0:01:38.6]} 24... Qc7 {[%clk 0:02:39]} 25. b6
{[%clk 0:01:37.2]} 25... Qd7 {[%clk 0:02:22.9]} 26. Ne5 {[%clk 0:01:31.7]} 26...
Qd8 {[%clk 0:02:21.6]} 27. Nxb7 {[%clk 0:01:06]} 27... Qe8 {[%clk 0:02:17.7]}
28. Nd6 {[%clk 0:01:02.7]} 28... Qd8 {[%clk 0:02:15.4]} 29. b7 {[%clk
0:00:55.2]} 29... Nd7 {[%clk 0:02:12.9]} 30. bxc8=Q {[%clk 0:00:45.4]} 30...
Nxc8 {[%clk 0:02:10.7]} 31. Rxc8 {[%clk 0:00:44.5]} 31... Qe7 {[%clk 0:01:57.8]}
32. Rxf8 {[%clk 0:00:42]} 32... Nxf8 {[%clk 0:01:52.6]} 33. Nexf7 {[%clk
0:00:40.4]} 1-0

[Event "Live Chess"]
[Site "Chess.com"]
[Date "2024.06.01"]
[Round "-"]
[White "Mangoalo"]
[Black "NottheBishopSacrifice"]
[Result "0-1"]
[WhiteElo "988"]
[BlackElo "2162"]
[TimeControl "300"]
[EndTime "9:58:24 PDT"]
[Termination "NottheBishopSacrifice won by checkmate"]

1. e4 {[%clk 0:04:56.6]} 1... c6 {[%clk 0:04:59.3]} 2. Nf3 {[%clk 0:04:56.5]}
2... d5 {[%clk 0:04:58.5]} 3. exd5 {[%clk 0:04:56.3]} 3... cxd5 {[%clk
0:04:57.6]} 4. d4 {[%clk 0:04:55.7]} 4... Nc6 {[%clk 0:04:57.3]} 5. Bf4 {[%clk
0:04:54.5]} 5... Bg4 {[%clk 0:04:56.7]} 6. c3 {[%clk 0:04:49.8]} 6... e6 {[%clk
0:04:56]} 7. Nbd2 {[%clk 0:04:49.1]} 7... Bd6 {[%clk 0:04:55.2]} 8. Be5 {[%clk
0:04:46.5]} 8... Nxe5 {[%clk 0:04:52.7]} 9. dxe5 {[%clk 0:04:45]} 9... Bc7
{[%clk 0:04:49.8]} 10. h3 {[%clk 0:04:42.8]} 10... Bh5 {[%clk 0:04:48.2]} 11.
Bb5+ {[%clk 0:04:41.3]} 11... Kf8 {[%clk 0:04:47]} 12. O-O {[%clk 0:04:33.3]}
12... Ne7 {[%clk 0:04:18.4]} 13. Be2 {[%clk 0:04:31.8]} 13... Nc6 {[%clk
0:04:16.7]} 14. Qc2 {[%clk 0:04:29.5]} 14... Bxf3 {[%clk 0:04:14.5]} 15. Nxf3
{[%clk 0:04:28]} 15... Nxe5 {[%clk 0:04:14.2]} 16. Nxe5 {[%clk 0:04:26.8]} 16...
Bxe5 {[%clk 0:04:14.1]} 17. Bh5 {[%clk 0:04:22.1]} 17... g6 {[%clk 0:04:12.8]}
18. Bxg6 {[%clk 0:04:12.5]} 18... hxg6 {[%clk 0:04:04.3]} 19. Rfe1 {[%clk
0:04:10]} 19... Bd6 {[%clk 0:04:03]} 20. Re3 {[%clk 0:04:07.7]} 20... Qg5 {[%clk
0:04:02.5]} 21. Qe2 {[%clk 0:03:51.9]} 21... Qf4 {[%clk 0:03:59.3]} 22. g3
{[%clk 0:03:45.4]} 22... Qf5 {[%clk 0:03:57]} 23. g4 {[%clk 0:03:43.6]} 23...
Qf4 {[%clk 0:03:48.5]} 24. f3 {[%clk 0:03:36.2]} 24... Qg3+ {[%clk 0:03:46.4]}
25. Qg2 {[%clk 0:03:33.1]} 25... Qf4 {[%clk 0:03:45.2]} 26. Rae1 {[%clk
0:03:29.3]} 26... Bc5 {[%clk 0:03:36.8]} 27. Kf2 {[%clk 0:03:22.8]} 27... Bxe3+
{[%clk 0:03:34.9]} 28. Rxe3 {[%clk 0:03:22.7]} 28... d4 {[%clk 0:03:34.4]} 29.
Re4 {[%clk 0:03:21.6]} 29... Qd2+ {[%clk 0:03:32.4]} 30. Kg3 {[%clk 0:03:20.4]}
30... Qd3 {[%clk 0:03:31.9]} 31. cxd4 {[%clk 0:03:12.4]} 31... Rd8 {[%clk
0:03:29.6]} 32. Qf2 {[%clk 0:03:09]} 32... Kg7 {[%clk 0:03:24.7]} 33. h4 {[%clk
0:03:06.6]} 33... Qd1 {[%clk 0:03:21.8]} 34. h5 {[%clk 0:03:02.8]} 34... Qh1
{[%clk 0:03:19.7]} 35. hxg6 {[%clk 0:03:00.6]} 35... Rh3+ {[%clk 0:03:07.4]} 36.
Kf4 {[%clk 0:02:59.5]} 36... Qc1+ {[%clk 0:03:07]} 37. Re3 {[%clk 0:02:56.7]}
37... Rxd4+ {[%clk 0:03:04]} 38. Ke5 {[%clk 0:02:48.7]} 38... Rd5+ {[%clk
0:03:03.5]} 39. Kf4 {[%clk 0:02:47.5]} 39... e5+ {[%clk 0:02:55]} 40. Ke4 {[%clk
0:02:44.3]} 40... Qc4+ {[%clk 0:02:52.8]} 41. Kf5 {[%clk 0:02:38.6]} 41... Qf4#
{[%clk 0:02:51.4]} 0-1

[Event "Live Chess"]
[Site "Chess.com"]
[Date "2024.06.01"]
[Round "-"]
[White "Kyrylo7770"]
[Black "Ksenia_2013"]
[Result "1-0"]
[WhiteElo "1710"]
[BlackElo "720"]
[TimeControl "300"]
[EndTime "9:58:26 PDT"]
[Termination "Kyrylo7770 won by checkmate"]

1. d4 {[%clk 0:04:59.2]} 1... d5 {[%clk 0:04:58.2]} 2. Nf3 {[%clk 0:04:58.7]}
2... Nc6 {[%clk 0:04:55.6]} 3. Bf4 {[%clk 0:04:58.2]} 3... Nf6 {[%clk
0:04:53.5]} 4. e3 {[%clk 0:04:57.7]} 4... Bf5 {[%clk 0:04:49.9]} 5. Bd3 {[%clk
0:04:56.3]} 5... Ne4 {[%clk 0:04:45.1]} 6. c3 {[%clk 0:04:54.1]} 6... g6 {[%clk
0:04:40.9]} 7. Bxe4 {[%clk 0:04:53.2]} 7... Bxe4 {[%clk 0:04:39]} 8. Nbd2 {[%clk
0:04:51.4]} 8... Bg7 {[%clk 0:04:35.2]} 9. Nxe4 {[%clk 0:04:50.3]} 9... dxe4
{[%clk 0:04:33.6]} 10. Nd2 {[%clk 0:04:49.4]} 10... Qd5 {[%clk 0:04:27.4]} 11.
c4 {[%clk 0:04:43.2]} 11... Qe6 {[%clk 0:04:23.1]} 12. d5 {[%clk 0:04:42.5]}
12... Qf5 {[%clk 0:04:14.6]} 13. dxc6 {[%clk 0:04:41.4]} 13... bxc6 {[%clk
0:04:08.5]} 14. Bxc7 {[%clk 0:04:40.4]} 14... O-O {[%clk 0:04:06.9]} 15. Bf4
{[%clk 0:04:38.8]} 15... Bxb2 {[%clk 0:04:04.5]} 16. Rb1 {[%clk 0:04:38.1]}
16... Bc3 {[%clk 0:04:01]} 17. Qc2 {[%clk 0:04:37.5]} 17... Bf6 {[%clk 0:03:58]}
18. O-O {[%clk 0:04:36.5]} 18... Be5 {[%clk 0:03:53.5]} 19. Bxe5 {[%clk
0:04:23.7]} 19... Qxe5 {[%clk 0:03:51.6]} 20. Nxe4 {[%clk 0:04:23.3]} 20... f5
{[%clk 0:03:45.5]} 21. Ng5 {[%clk 0:04:20.8]} 21... Qf6 {[%clk 0:03:36.3]} 22.
Nf3 {[%clk 0:04:15.2]} 22... f4 {[%clk 0:03:31.3]} 23. e4 {[%clk 0:04:11.2]}
23... g5 {[%clk 0:03:19.8]} 24. e5 {[%clk 0:03:42.8]} 24... Qh6 {[%clk
0:03:17.5]} 25. c5 {[%clk 0:03:40.6]} 25... Qh5 {[%clk 0:03:16.3]} 26. Qc4+
{[%clk 0:03:39.5]} 26... Rf7 {[%clk 0:03:12]} 27. Qe6 {[%clk 0:03:32.3]} 27...
Rf8 {[%clk 0:03:09.1]} 28. Rb7 {[%clk 0:03:17.5]} 28... Kh8 {[%clk 0:03:06.5]}
29. Rxa7 {[%clk 0:03:11.9]} 29... Rg7 {[%clk 0:03:04.5]} 30. Rxe7 {[%clk
0:03:05.4]} 30... Rg6 {[%clk 0:03:00.2]} 31. Qh3 {[%clk 0:02:50.3]} 31... Qxh3
{[%clk 0:02:46.8]} 32. gxh3 {[%clk 0:02:48.6]} 32... g4 {[%clk 0:02:42.8]} 33.
Nh4 {[%clk 0:02:44.7]} 33... gxh3+ {[%clk 0:02:40.4]} 34. Nxg6+ {[%clk
0:02:42.9]} 34... Kg8 {[%clk 0:02:36.7]} 35. Nxf8 {[%clk 0:02:41.1]} 35... Kxf8
{[%clk 0:02:35.5]} 36. Rxh7 {[%clk 0:02:40.1]} 36... Kg8 {[%clk 0:02:32.7]} 37.
Ra7 {[%clk 0:02:38.1]} 37... f3 {[%clk 0:02:29.8]} 38. Rb1 {[%clk 0:02:36.2]}
38... Kf8 {[%clk 0:02:27.6]} 39. Rb8# {[%clk 0:02:35.6]} 1-0

[Event "Live Chess"]
[Site "Chess.com"]
[Date "2024.06.01"]
[Round "-"]
[White "Brooms1989"]
[Black "booktrunk"]
[Result "0-1"]
[WhiteElo "1067"]
[BlackElo "1390"]
[TimeControl "300"]
[EndTime "9:58:44 PDT"]
[Termination "booktrunk won by resignation"]

1. e4 {[%clk 0:04:57.2]} 1... b6 {[%clk 0:04:57.3]} 2. d4 {[%clk 0:04:54.9]}
2... Bb7 {[%clk 0:04:50.8]} 3. Nc3 {[%clk 0:04:51.5]} 3... e6 {[%clk 0:04:44.4]}
4. Bd3 {[%clk 0:04:48.5]} 4... Bb4 {[%clk 0:04:41.5]} 5. a3 {[%clk 0:04:42.6]}
5... Bxc3+ {[%clk 0:04:37.6]} 6. bxc3 {[%clk 0:04:42.5]} 6... Nf6 {[%clk
0:04:35.8]} 7. f3 {[%clk 0:04:38.7]} 7... d6 {[%clk 0:04:32.6]} 8. Ne2 {[%clk
0:04:37.4]} 8... Nbd7 {[%clk 0:04:29.4]} 9. O-O {[%clk 0:04:35.9]} 9... e5
{[%clk 0:04:27.7]} 10. d5 {[%clk 0:04:29.8]} 10... c6 {[%clk 0:04:24.8]} 11. c4
{[%clk 0:04:28.3]} 11... cxd5 {[%clk 0:04:23]} 12. cxd5 {[%clk 0:04:28.2]} 12...
Nc5 {[%clk 0:04:21.9]} 13. c4 {[%clk 0:03:55.4]} 13... Nxd3 {[%clk 0:04:17.6]}
14. Qxd3 {[%clk 0:03:54]} 14... O-O {[%clk 0:04:16.6]} 15. Bg5 {[%clk
0:03:49.3]} 15... h6 {[%clk 0:04:11.2]} 16. Bh4 {[%clk 0:03:46.7]} 16... g5
{[%clk 0:04:07.7]} 17. Bxg5 {[%clk 0:03:16.1]} 17... hxg5 {[%clk 0:03:55.6]} 18.
Ng3 {[%clk 0:03:10.6]} 18... Nh7 {[%clk 0:03:53.1]} 19. Nf5 {[%clk 0:03:07.7]}
19... Qf6 {[%clk 0:03:48.8]} 20. Kh1 {[%clk 0:02:34.6]} 20... Rac8 {[%clk
0:03:44.3]} 21. Rac1 {[%clk 0:02:22.3]} 21... Ba6 {[%clk 0:03:41.9]} 22. Qb3
{[%clk 0:02:14.4]} 22... Rc5 {[%clk 0:03:36.3]} 23. a4 {[%clk 0:02:10.5]} 23...
Rfc8 {[%clk 0:03:33.6]} 0-1

[Event "Live Chess"]
[Site "Chess.com"]
[Date "2024.06.01"]
[Round "-"]
[White "Cruiseylee78"]
[Black "bill77678"]
[Result "0-1"]
[WhiteElo "1652"]
[BlackElo "1806"]
[TimeControl "300"]
[EndTime "9:58:50 PDT"]
[Termination "bill77678 won by resignation"]

1. d3 {[%clk 0:04:58.2]} 1... d5 {[%clk 0:04:58.8]} 2. Nd2 {[%clk 0:04:50.1]}
2... c5 {[%clk 0:04:56]} 3. e3 {[%clk 0:04:49.4]} 3... e5 {[%clk 0:04:54.7]} 4.
e4 {[%clk 0:04:46.3]} 4... d4 {[%clk 0:04:46.9]} 5. Ngf3 {[%clk 0:04:45]} 5...
Nc6 {[%clk 0:04:45.5]} 6. h3 {[%clk 0:04:44.2]} 6... Bd6 {[%clk 0:04:42]} 7. Be2
{[%clk 0:04:43.3]} 7... Nge7 {[%clk 0:04:38]} 8. c3 {[%clk 0:04:42.2]} 8... O-O
{[%clk 0:04:35.8]} 9. Qc2 {[%clk 0:04:41.2]} 9... f5 {[%clk 0:04:32.3]} 10. Nf1
{[%clk 0:04:35.5]} 10... fxe4 {[%clk 0:04:29.3]} 11. dxe4 {[%clk 0:04:35.4]}
11... Qa5 {[%clk 0:04:12.3]} 12. Bc4+ {[%clk 0:04:33.5]} 12... Kh8 {[%clk
0:04:08.4]} 13. g4 {[%clk 0:04:29.3]} 13... dxc3 {[%clk 0:04:04.7]} 14. bxc3
{[%clk 0:04:27.2]} 14... Nd4 {[%clk 0:04:00.5]} 15. Nxd4 {[%clk 0:04:12.4]}
15... exd4 {[%clk 0:03:56.8]} 16. Bd2 {[%clk 0:04:07.5]} 16... Qc7 {[%clk
0:03:32.1]} 17. cxd4 {[%clk 0:04:04.2]} 17... cxd4 {[%clk 0:03:32]} 18. Qd3
{[%clk 0:03:51]} 18... Nc6 {[%clk 0:03:26.3]} 19. Ng3 {[%clk 0:03:40.1]} 19...
Ne5 {[%clk 0:03:24.9]} 20. Qc2 {[%clk 0:03:21.4]} 20... Qxc4 {[%clk 0:03:15.2]}
21. Qxc4 {[%clk 0:03:20.2]} 21... Nxc4 {[%clk 0:03:15.1]} 22. Rc1 {[%clk
0:03:17.6]} 22... Be6 {[%clk 0:03:10.1]} 23. Nf5 {[%clk 0:03:14.6]} 23... Nxd2
{[%clk 0:02:48.9]} 24. Kxd2 {[%clk 0:03:02.4]} 24... Bf4+ {[%clk 0:02:47.2]} 0-1